fUSD/lending_fUSD_20251222
["ID","MTS","AMOUNT","RATE_DAILY","PERIOD"]
[399495174,1766415038454,-12987.04402191,0.00014631,2]
[399495175,1766415038466,-6180.06466264,0.00014631,2]
[399495176,1766415038479,-735.85953622,0.00014631,2]
[399495177,1766415038493,-349.19103012,0.00014631,2]
[399495181,1766415039828,-175.32192072,0.00014531,2]
[399495182,1766415039837,-364.67207664,0.00014631,2]
[399495183,1766415039848,-931327.67766301,0.00014631,2]
[399495184,1766415039858,-2650.5986,0.00014631,2]
[399495185,1766415039867,-500.0,0.0001473,2]
[399495186,1766415039877,-500.0,0.0001473,2]
[399495187,1766415039886,-500.0,0.0001473,2]
[399495188,1766415039895,-500.0,0.0001473,2]
[399495189,1766415039904,-500.0,0.0001473,2]
[399495190,1766415039914,-500.0,0.0001473,2]
[399495191,1766415039923,-500.0,0.0001473,2]
[399495192,1766415039932,-500.0,0.0001473,2]
[399495193,1766415039942,-500.0,0.0001473,2]
[399495194,1766415039951,-210.05122296,0.00014794,2]
[399495195,1766415039960,-194.38188986,0.00014794,2]
[399495196,1766415039969,-1000.0,0.00014848,2]
[399495197,1766415039979,-596.75,0.00014902,2]
[399495198,1766415039988,-166.67,0.00014986,2]
[399495199,1766415039998,-210.05122296,0.00015057,2]
[399495200,1766415040007,-194.38188986,0.00015057,2]
[399495201,1766415040016,-294.29,0.00015068,2]
[399495202,1766415040025,-596.75,0.00015176,2]
[399495203,1766415040035,-299.99,0.0001531,2]
[399495204,1766415040044,-150.99,0.0001531,2]
[399495205,1766415040057,-210.05122296,0.00015321,2]
[399495206,1766415040066,-596.75,0.0001545,2]
[399495207,1766415040076,-151.0,0.00015474,2]
[399495208,1766415040085,-500.0,0.00015491,2]
[399495209,1766415040095,-500.0,0.00015491,2]
[399495210,1766415040104,-500.0,0.00015491,2]
[399495211,1766415040114,-500.0,0.00015491,2]
[399495212,1766415040123,-501.29502757,0.00015493,2]
[399495213,1766415040132,-151.0,0.00015536,2]
[399495214,1766415040143,-210.05122296,0.00015584,2]
[399495215,1766415040152,-301.14347434,0.00015716,2]
[399495216,1766415040161,-596.75,0.00015724,2]
[399495217,1766415040170,-166.67,0.00015729,2]
[399495218,1766415040180,-481.33,0.00015753,2]
[399495219,1766415040195,-210.05122296,0.00015847,2]
[399495220,1766415040205,-596.79,0.00015998,2]
[399495221,1766415040215,-151.47080458,0.00016048,2]
[399495222,1766415040225,-210.05122296,0.0001611,2]
[399495223,1766415040234,-670.58624095,0.00016149,2]
[399495224,1766415040244,-250.0,0.00016149,2]
[399495225,1766415040254,-250.0,0.00016149,2]
[399495226,1766415040264,-500.0,0.00016149,2]
[399495227,1766415040274,-250.0,0.00016149,2]
[399495228,1766415040283,-500.0,0.00016149,2]
[399495229,1766415040293,-250.0,0.00016149,2]
[399495230,1766415040303,-500.0,0.00016149,2]
[399495231,1766415040313,-250.0,0.00016149,2]
[399495232,1766415040325,-500.0,0.00016149,2]
[399495233,1766415040335,-500.0,0.00016149,2]
[399495234,1766415040347,-250.0,0.00016149,2]
[399495235,1766415040357,-500.0,0.00016149,2]
[399495236,1766415040367,-500.0,0.00016149,2]
[399495237,1766415040377,-250.0,0.00016149,2]
[399495238,1766415040386,-500.0,0.00016149,2]
[399495239,1766415040396,-500.0,0.00016149,2]
[399495240,1766415040406,-250.0,0.00016149,2]
[399495241,1766415040418,-500.0,0.00016149,2]
[399495242,1766415040427,-500.0,0.00016149,2]
[399495243,1766415040436,-250.0,0.00016149,2]
[399495244,1766415040446,-500.0,0.00016149,2]
[399495245,1766415040455,-500.0,0.00016149,2]
[399495246,1766415040464,-250.0,0.00016149,2]
[399495247,1766415040474,-500.0,0.00016149,2]
[399495248,1766415040483,-500.0,0.00016149,2]
[399495249,1766415040492,-250.0,0.00016149,2]
[399495250,1766415040501,-500.0,0.00016149,2]
[399495251,1766415040512,-500.0,0.00016149,2]
[399495252,1766415040521,-250.0,0.00016149,2]
[399495253,1766415040530,-500.0,0.00016149,2]
[399495254,1766415040539,-500.0,0.00016149,2]
[399495255,1766415040548,-250.0,0.00016149,2]
[399495256,1766415040558,-322.6107,0.00016149,2]
[399495257,1766415040568,-500.0,0.00016149,2]
[399495258,1766415040577,-500.0,0.00016149,2]
[399495259,1766415040586,-500.0,0.00016149,2]
[399495260,1766415040595,-500.0,0.00016149,2]
[399495261,1766415040604,-194.72792766,0.00016149,2]
[399495262,1766415040614,-500.0,0.00016149,2]
[399495263,1766415040624,-500.0,0.00016149,2]
[399495264,1766415040633,-500.0,0.00016149,2]
[399495265,1766415040643,-500.0,0.00016149,2]
[399495266,1766415040652,-500.0,0.00016149,2]
[399495267,1766415040662,-500.0,0.00016149,2]
[399495268,1766415040671,-500.0,0.00016149,2]
[399495269,1766415040680,-500.0,0.00016149,2]
[399495270,1766415040689,-500.0,0.00016149,2]
[399495271,1766415040699,-250.0,0.00016149,2]
[399495272,1766415040708,-500.0,0.00016149,2]
[399495273,1766415040717,-250.0,0.00016149,2]
[399495274,1766415040726,-500.0,0.00016149,2]
[399495276,1766415040735,-250.0,0.00016149,2]
[399495278,1766415040744,-500.0,0.00016149,2]
[399495280,1766415040754,-250.0,0.00016149,2]
[399495282,1766415040763,-500.0,0.00016149,2]
[399495284,1766415040772,-533.88981491,0.00016149,2]
[399495286,1766415040781,-250.0,0.00016149,2]
[399495288,1766415040790,-500.0,0.00016149,2]
[399495290,1766415040800,-250.0,0.00016149,2]
[399495292,1766415040809,-500.0,0.00016149,2]
[399495294,1766415040821,-250.0,0.00016149,2]
[399495296,1766415040830,-500.0,0.00016149,2]
[399495298,1766415040842,-250.0,0.00016149,2]
[399495300,1766415040852,-250.0,0.00016149,2]
[399495302,1766415040861,-194.72792766,0.00016149,2]
[399495304,1766415040870,-250.0,0.00016149,2]
[399495306,1766415040879,-250.0,0.00016149,2]
[399495308,1766415040889,-250.0,0.00016149,2]
[399495310,1766415040899,-250.0,0.00016149,2]
[399495312,1766415040908,-250.0,0.00016149,2]
[399495314,1766415040920,-250.0,0.00016149,2]
[399495316,1766415040930,-250.0,0.00016149,2]
[399495318,1766415040939,-250.0,0.00016149,2]
[399495320,1766415040949,-250.0,0.00016149,2]
[399495322,1766415040959,-250.0,0.00016149,2]
[399495324,1766415040968,-250.0,0.00016149,2]
[399495326,1766415040978,-250.0,0.00016149,2]
[399495329,1766415040990,-250.0,0.00016149,2]
[399495331,1766415040999,-250.0,0.00016149,2]
[399495333,1766415041008,-151.0,0.00016149,2]
[399495334,1766415041017,-250.0,0.00016149,2]
[399495336,1766415041026,-250.0,0.00016149,2]
[399495338,1766415041036,-250.0,0.00016149,2]
[399495340,1766415041045,-3457.0,0.00016351,2]
[399495342,1766415041054,-1609.0,0.00016351,2]
[399495344,1766415041063,-613.199,0.00016351,2]
[399495346,1766415041074,-1335.73,0.00016351,2]
[399495348,1766415041084,-1262.0,0.00016351,2]
[399495350,1766415041093,-518.0,0.00016351,2]
[399495352,1766415041103,-2429.0,0.00016351,2]
[399495354,1766415041112,-564.0,0.00016351,2]
[399495356,1766415041121,-6528.0,0.00016351,2]
[399495358,1766415041131,-210.05122296,0.00016374,2]
[399495360,1766415041140,-1403.4,0.00016438,2]
[399495362,1766415041149,-500.0,0.00016438,2]
[399495364,1766415041159,-307.01698332,0.00016438,2]
[399495366,1766415041168,-500.0,0.00016438,2]
[399495368,1766415041177,-500.0,0.00016438,2]
[399495370,1766415041186,-500.0,0.00016438,2]
[399495372,1766415041195,-500.0,0.00016438,2]
[399495374,1766415041204,-500.0,0.00016438,2]
[399495376,1766415041214,-225.92,0.00016438,2]
[399495378,1766415041223,-807.25325449,0.00016438,2]
[399495380,1766415041233,-12205.74,0.00016438,2]
[399495382,1766415041242,-632.39,0.00016438,2]
[399495384,1766415041251,-168.0,0.00016572,2]
[399495386,1766415041261,-210.05122296,0.00016637,2]
[399495388,1766415041271,-2616.99469076,0.0001666,2]
[399495390,1766415041280,-322.36888896,0.00016697,2]
[399495392,1766415041290,-553.64373807,0.00016697,2]
[399495394,1766415041299,-201.93286099,0.00016697,2]
[399495396,1766415041308,-151.0,0.00016697,2]
[399495398,1766415041318,-1000.0,0.000168,2]
[399495400,1766415041332,-207.4,0.0001681,2]
[399495402,1766415041341,-200.0,0.00016864,2]
[399495404,1766415041351,-10000.0,0.000169,2]
[399495406,1766415041360,-1000.0,0.000169,2]
[399495408,1766415041370,-210.05122296,0.000169,2]
[399495410,1766415041379,-560.52531104,0.000169,2]
[399495412,1766415041390,-189.38580213,0.000169,2]
[399495414,1766415041402,-161.30739073,0.000169,2]
[399495416,1766415041412,-595.62143675,0.000169,2]
[399495418,1766415041421,-301.14347434,0.000169,2]
[399495420,1766415041430,-500.0,0.000169,2]
[399495422,1766415041439,-500.0,0.000169,2]
[399495424,1766415041448,-500.0,0.000169,2]
[399495426,1766415041458,-500.0,0.000169,2]
[399495428,1766415041467,-500.0,0.000169,2]
[399495430,1766415041477,-500.0,0.000169,2]
[399495432,1766415041486,-500.0,0.000169,2]
[399495434,1766415041495,-500.0,0.000169,2]
[399495436,1766415041504,-500.0,0.000169,2]
[399495438,1766415041514,-500.0,0.000169,2]
[399495439,1766415041523,-500.0,0.000169,2]
[399495441,1766415041532,-500.0,0.000169,2]
[399495444,1766415041542,-500.0,0.000169,2]
[399495446,1766415041552,-500.0,0.000169,2]
[399495447,1766415041560,-500.0,0.000169,2]
[399495449,1766415041571,-500.0,0.000169,2]
[399495450,1766415041580,-500.0,0.000169,2]
[399495451,1766415041589,-500.0,0.000169,2]
[399495452,1766415041599,-500.0,0.000169,2]
[399495453,1766415041608,-500.0,0.000169,2]
[399495454,1766415041617,-500.0,0.000169,2]
[399495455,1766415041630,-500.0,0.000169,2]
[399495456,1766415041639,-500.0,0.000169,2]
[399495457,1766415041648,-500.0,0.000169,2]
[399495458,1766415041658,-500.0,0.000169,2]
[399495459,1766415041667,-415.66004447,0.000169,2]
[399495460,1766415041676,-5619.0,0.000169,2]
[399495461,1766415041686,-457.0,0.00016959,2]
[399495462,1766415041695,-320.3278123,0.00016963,2]
[399495463,1766415041706,-500.0,0.00016972,2]
[399495464,1766415041714,-179.47316237,0.00016973,2]
[399495465,1766415041724,-323.69632607,0.00016973,2]
[399495466,1766415041733,-500.0,0.00016973,2]
[399495467,1766415041743,-607.27794766,0.00016973,2]
[399495468,1766415041753,-500.0,0.00016973,2]
[399495469,1766415041762,-473.51090272,0.00016973,2]
[399495470,1766415041771,-500.0,0.00016973,2]
[399495471,1766415041781,-187.58612974,0.00016973,2]
[399495472,1766415041790,-500.0,0.00016973,2]
[399495473,1766415041799,-500.0,0.00016973,2]
[399495474,1766415041808,-500.0,0.00016973,2]
[399495475,1766415041818,-500.0,0.00016973,2]
[399495476,1766415041828,-500.0,0.00016973,2]
[399495477,1766415041838,-500.0,0.00016973,2]
[399495478,1766415041847,-500.0,0.00016973,2]
[399495479,1766415041857,-500.0,0.00016973,2]
[399495480,1766415041866,-500.0,0.00016973,2]
[399495481,1766415041875,-500.0,0.00016973,2]
[399495482,1766415041884,-500.0,0.00016973,2]
[399495483,1766415041894,-500.0,0.00016973,2]
[399495484,1766415041903,-500.0,0.00016973,2]
[399495485,1766415041913,-500.0,0.00016973,2]
[399495486,1766415041922,-500.0,0.00016973,2]
[399495487,1766415041933,-500.0,0.00016973,2]
[399495488,1766415041942,-500.0,0.00016973,2]
[399495489,1766415041951,-500.0,0.00016973,2]
[399495490,1766415041960,-500.0,0.00016973,2]
[399495491,1766415041970,-500.0,0.00016973,2]
[399495492,1766415041979,-500.0,0.00016973,2]
[399495493,1766415041988,-500.0,0.00016973,2]
[399495494,1766415041998,-517.55500559,0.00016973,2]
[399495495,1766415042007,-500.0,0.00016973,2]
[399495496,1766415042016,-500.0,0.00016973,2]
[399495497,1766415042026,-468.6988227,0.00016973,2]
[399495498,1766415042035,-500.0,0.00016973,2]
[399495499,1766415042045,-500.0,0.00016973,2]
[399495500,1766415042054,-500.0,0.00016973,2]
[399495501,1766415042064,-500.0,0.00016973,2]
[399495502,1766415042074,-500.0,0.00016973,2]
[399495503,1766415042084,-500.0,0.00016973,2]
[399495504,1766415042093,-500.0,0.00016973,2]
[399495505,1766415042103,-500.0,0.00016973,2]
[399495506,1766415042112,-500.0,0.00016973,2]
[399495507,1766415042122,-220.3394429,0.00016973,2]
[399495508,1766415042131,-500.0,0.00016973,2]
[399495509,1766415042142,-500.0,0.00016973,2]
[399495510,1766415042151,-500.0,0.00016973,2]
[399495511,1766415042160,-500.0,0.00016973,2]
[399495512,1766415042170,-500.0,0.00016973,2]
[399495513,1766415042179,-500.0,0.00016973,2]
[399495514,1766415042189,-500.0,0.00016973,2]
[399495515,1766415042198,-577.70558009,0.00016973,2]
[399495516,1766415042208,-500.0,0.00016973,2]
[399495517,1766415042219,-166.96828513,0.00016973,2]
[399495518,1766415042228,-161.12986217,0.00016973,2]
[399495519,1766415042239,-500.45563157,0.00016973,2]
[399495520,1766415042248,-516.53532775,0.00016973,2]
[399495521,1766415042258,-344.75321982,0.00016973,2]
[399495522,1766415042267,-523.16788729,0.00016973,2]
[399495523,1766415042276,-500.19873097,0.00016973,2]
[399495524,1766415042286,-500.0,0.00016973,2]
[399495525,1766415042295,-192.33860374,0.00016973,2]
[399495526,1766415042304,-150.0,0.00016973,2]
[399495527,1766415042314,-150.0,0.00016973,2]
[399495528,1766415042326,-320.3278123,0.0001699,2]
[399495529,1766415042336,-320.3278123,0.0001699,2]
[399495530,1766415042348,-1000.0,0.00016999,2]
[399495532,1766415042357,-500.0,0.00016999,2]
[399495534,1766415042368,-500.0,0.00016999,2]
[399495536,1766415042378,-500.0,0.00016999,2]
[399495537,1766415042388,-500.0,0.00016999,2]
[399495538,1766415042397,-500.0,0.00016999,2]
[399495539,1766415042407,-500.0,0.00016999,2]
[399495540,1766415042418,-541.94,0.00016999,2]
[399495541,1766415042427,-300.0,0.00016999,2]
[399495542,1766415042436,-666.0,0.00016999,2]
[399495543,1766415042446,-300.0,0.00016999,2]
[399495544,1766415042455,-666.0,0.00016999,2]
[399495545,1766415042464,-300.0,0.00016999,2]
[399495546,1766415042474,-500.0,0.00016999,2]
[399495547,1766415042484,-500.0,0.00016999,2]
[399495549,1766415042493,-578.59832559,0.00016999,2]
[399495550,1766415042502,-500.0,0.00016999,2]
[399495551,1766415042512,-500.0,0.00016999,2]
[399495552,1766415042522,-500.0,0.00016999,2]
[399495553,1766415042531,-500.0,0.00016999,2]
[399495554,1766415042540,-500.0,0.00016999,2]
[399495555,1766415042549,-500.0,0.00016999,2]
[399495556,1766415042559,-592.33,0.00016999,2]
[399495557,1766415042569,-2841103.1379622,0.00017,2]
[399495558,1766415042579,-1095875.07060121,0.00017,2]
[399495559,1766415042781,-1517.02838559,0.00017,2]
[399495560,1766415042794,-256.94880015,0.00017,2]
[399495562,1766415044714,-175.32192068,0.00015012,2]
[399495563,1766415044723,-194.38188986,0.00015321,2]
[399495564,1766415044733,-479.0,0.00015574,2]
[399495565,1766415044742,-1348.0,0.00015605,2]
[399495566,1766415044751,-1880.0,0.00015636,2]
[399495567,1766415044761,-438.0,0.00015667,2]
[399495568,1766415044770,-17952.511587,0.00017,2]
[399495569,1766415044981,-105392.55749564,0.00017,2]
[399495570,1766415045008,-661.03999474,0.00017,2]
[399495580,1766415045708,-1798.89441625,0.00017,2]
[399495581,1766415045941,-482.31094882,0.000169,2]
[399495582,1766415045950,-165.30996776,0.00017,2]
[399495583,1766415045961,-8637.42458002,0.00017,2]
[399495587,1766415656240,20000.0,0.00022,30]
[399495597,1766416231879,-959.43,0.00013699,2]
[399495598,1766416231889,-600.0,0.00013699,2]
[399495599,1766416231899,-600.0,0.00013699,2]
[399495600,1766416231909,-600.0,0.00013699,2]
[399495601,1766416231919,-166.66,0.00013743,2]
[399495602,1766416231929,-166.66,0.00014032,2]
[399495603,1766416231938,-500.0,0.00014126,2]
[399495604,1766416231948,-1465.62,0.00014219,2]
[399495605,1766416231958,-1200.0,0.00014299,2]
[399495606,1766416231967,-151.95,0.000143,2]
[399495607,1766416231977,-152.7,0.000143,2]
[399495608,1766416231987,-500.0,0.000143,2]
[399495609,1766416231996,-166.66,0.00014322,2]
[399495610,1766416232006,-300.0,0.00014493,2]
[399495611,1766416232015,-1000.0,0.00014494,2]
[399495612,1766416232025,-150.0,0.00014503,2]
[399495613,1766416232034,-500.0,0.00014503,2]
[399495614,1766416232044,-373.93853303,0.00014503,2]
[399495615,1766416232053,-500.0,0.00014503,2]
[399495616,1766416232062,-35409.70484687,0.00014504,2]
[399495617,1766416232074,-413.481081,0.00014504,2]
[399495618,1766416232111,-614.24645689,0.00014504,2]
[399495619,1766416232126,-2047.80761524,0.00014504,2]
[399495620,1766416232136,-9999.99,0.00014504,2]
[399495621,1766416232145,-150.99,0.00014504,2]
[399495622,1766416232154,-999.99,0.00014504,2]
[399495623,1766416232164,-9999.99,0.00014504,2]
[399495624,1766416232178,-21842.5218,0.00014531,2]
[399495625,1766416232187,-1000.0,0.00014531,2]
[399495626,1766416232197,-150.0,0.00014534,2]
[399495627,1766416232207,-500.0,0.00014593,2]
[399495628,1766416232217,-500.0,0.00014593,2]
[399495629,1766416232227,-500.0,0.00014593,2]
[399495630,1766416232237,-500.0,0.00014593,2]
[399495631,1766416232247,-500.0,0.00014593,2]
[399495632,1766416232257,-500.0,0.00014593,2]
[399495633,1766416232266,-500.0,0.00014593,2]
[399495634,1766416232276,-500.0,0.00014593,2]
[399495635,1766416232286,-500.0,0.00014593,2]
[399495636,1766416232296,-500.0,0.00014593,2]
[399495637,1766416232305,-500.0,0.00014593,2]
[399495638,1766416232314,-200.0,0.00014593,2]
[399495639,1766416232324,-500.0,0.00014593,2]
[399495640,1766416232334,-500.0,0.00014593,2]
[399495641,1766416232343,-500.0,0.00014593,2]
[399495642,1766416232354,-151.0,0.00014593,2]
[399495643,1766416232370,-500.0,0.00014593,2]
[399495644,1766416232381,-420.12511688,0.00014593,2]
[399495645,1766416232390,-200.0,0.00014593,2]
[399495646,1766416232400,-151.0,0.00014593,2]
[399495647,1766416232409,-200.0,0.00014593,2]
[399495648,1766416232419,-151.0,0.00014593,2]
[399495649,1766416232428,-151.0,0.00014593,2]
[399495650,1766416232438,-151.0,0.00014593,2]
[399495651,1766416232447,-151.0,0.00014593,2]
[399495652,1766416232457,-151.0,0.00014593,2]
[399495653,1766416232468,-151.0,0.00014593,2]
[399495654,1766416232478,-151.0,0.00014593,2]
[399495655,1766416232829,-151.0,0.00014593,2]
[399495656,1766416232839,-500.0,0.00014593,2]
[399495657,1766416232849,-151.0,0.00014593,2]
[399495658,1766416232864,-151.0,0.00014593,2]
[399495659,1766416232874,-312.94059854,0.00014593,2]
[399495660,1766416232883,-151.0,0.00014593,2]
[399495661,1766416232892,-151.0,0.00014593,2]
[399495662,1766416232902,-151.0,0.00014593,2]
[399495663,1766416232911,-151.0,0.00014593,2]
[399495664,1766416232921,-151.0,0.00014593,2]
[399495665,1766416232930,-151.0,0.00014593,2]
[399495666,1766416232940,-151.0,0.00014593,2]
[399495667,1766416232949,-151.0,0.00014593,2]
[399495668,1766416232959,-151.0,0.00014593,2]
[399495669,1766416232968,-151.0,0.00014593,2]
[399495670,1766416232978,-151.0,0.00014593,2]
[399495671,1766416232988,-151.0,0.00014593,2]
[399495672,1766416232998,-151.0,0.00014593,2]
[399495673,1766416233007,-151.0,0.00014593,2]
[399495674,1766416233017,-151.0,0.00014593,2]
[399495675,1766416233026,-151.0,0.00014593,2]
[399495676,1766416233036,-151.0,0.00014593,2]
[399495677,1766416233046,-151.0,0.00014593,2]
[399495678,1766416233057,-151.0,0.00014593,2]
[399495679,1766416233067,-151.0,0.00014593,2]
[399495680,1766416233076,-151.0,0.00014593,2]
[399495681,1766416233085,-151.0,0.00014593,2]
[399495682,1766416233094,-500.0,0.00014593,2]
[399495683,1766416233103,-922.27777001,0.00014602,2]
[399495684,1766416237898,-9008.73298847,0.00014602,2]
[399495685,1766416237910,-23289.57036021,0.00014602,2]
[399495686,1766416238548,-604.6439963,0.00014602,2]
[399495687,1766416240055,-270.8181991,0.00014602,2]
[399495688,1766416240067,-2163.04668591,0.00014602,2]
[399495689,1766416240077,-166.66,0.00014611,2]
[399495690,1766416240086,-675.0,0.00014626,2]
[399495691,1766416240099,-500.0,0.0001463,2]
[399495692,1766416240108,-500.0,0.0001463,2]
[399495693,1766416240119,-500.0,0.0001463,2]
[399495694,1766416240128,-500.0,0.0001463,2]
[399495695,1766416240137,-500.0,0.0001463,2]
[399495696,1766416240146,-1349.0,0.00014642,2]
[399495697,1766416240156,-1415.0,0.00014655,2]
[399495698,1766416240167,-1600.0,0.00014773,2]
[399495699,1766416240176,-500.0,0.00014848,2]
[399495700,1766416240185,-166.66,0.000149,2]
[399495701,1766416240195,-378.9346838,0.00015,2]
[399495702,1766416240204,-600.0,0.00015068,2]
[399495703,1766416240213,-600.0,0.00015068,2]
[399495704,1766416240223,-200.0,0.00015141,2]
[399495705,1766416240233,-200.0,0.00015141,2]
[399495706,1766416240242,-500.0,0.00015141,2]
[399495707,1766416240252,-166.66,0.0001519,2]
[399495708,1766416240261,-166.61304846,0.00015384,2]
[399495709,1766416240270,-151.0,0.00015409,2]
[399495710,1766416240278,-151.0,0.00015411,2]
[399495711,1766416240288,-200.0,0.00015443,2]
[399495712,1766416240297,-1588.17,0.00015456,2]
[399495713,1766416240307,-8816.28,0.00015472,2]
[399495714,1766416240317,-218.38,0.00015529,2]
[399495715,1766416240326,-210.0,0.0001562,2]
[399495716,1766416240336,-166.61304845,0.00015637,2]
[399495717,1766416240345,-200.0,0.00015689,2]
[399495718,1766416240355,-200.0,0.00015689,2]
[399495719,1766416240365,-500.0,0.00015689,2]
[399495720,1766416240377,-279.1,0.000157,2]
[399495721,1766416240387,-480.0,0.00015729,2]
[399495722,1766416240396,-218.38,0.00015803,2]
[399495723,1766416240405,-242.0,0.0001587,2]
[399495724,1766416240415,-166.61304845,0.00015889,2]
[399495725,1766416240425,-151.47080458,0.00016048,2]
[399495726,1766416240434,-218.4,0.00016077,2]
[399495727,1766416240444,-311.35742357,0.00016108,2]
[399495728,1766416240453,-78489.94,0.00016115,2]
[399495729,1766416240463,-166.61304845,0.00016142,2]
[399495730,1766416240473,-194.72792766,0.00016149,2]
[399495731,1766416240483,-670.58624095,0.00016149,2]
[399495732,1766416240492,-500.0,0.00016149,2]
[399495733,1766416240502,-500.0,0.00016149,2]
[399495734,1766416240512,-500.0,0.00016149,2]
[399495735,1766416240522,-500.0,0.00016149,2]
[399495736,1766416240532,-250.0,0.00016149,2]
[399495737,1766416240542,-500.0,0.00016149,2]
[399495738,1766416240551,-500.0,0.00016149,2]
[399495739,1766416240561,-250.0,0.00016149,2]
[399495740,1766416240571,-500.0,0.00016149,2]
[399495741,1766416240581,-500.0,0.00016149,2]
[399495742,1766416240590,-500.0,0.00016149,2]
[399495743,1766416240600,-250.0,0.00016149,2]
[399495744,1766416240609,-500.0,0.00016149,2]
[399495746,1766416240619,-500.0,0.00016149,2]
[399495748,1766416240629,-250.0,0.00016149,2]
[399495751,1766416240639,-500.0,0.00016149,2]
[399495752,1766416240652,-500.0,0.00016149,2]
[399495755,1766416240662,-250.0,0.00016149,2]
[399495757,1766416240672,-500.0,0.00016149,2]
[399495758,1766416240682,-500.0,0.00016149,2]
[399495760,1766416240692,-250.0,0.00016149,2]
[399495763,1766416240703,-500.0,0.00016149,2]
[399495765,1766416240713,-500.0,0.00016149,2]
[399495766,1766416240723,-250.0,0.00016149,2]
[399495768,1766416240733,-500.0,0.00016149,2]
[399495769,1766416240742,-500.0,0.00016149,2]
[399495770,1766416240752,-250.0,0.00016149,2]
[399495771,1766416240761,-500.0,0.00016149,2]
[399495772,1766416240771,-500.0,0.00016149,2]
[399495773,1766416240781,-250.0,0.00016149,2]
[399495774,1766416240790,-500.0,0.00016149,2]
[399495775,1766416240799,-500.0,0.00016149,2]
[399495776,1766416240809,-250.0,0.00016149,2]
[399495777,1766416240819,-322.6107,0.00016149,2]
[399495778,1766416240828,-500.0,0.00016149,2]
[399495779,1766416240838,-500.0,0.00016149,2]
[399495780,1766416240852,-250.0,0.00016149,2]
[399495781,1766416240862,-500.0,0.00016149,2]
[399495782,1766416240872,-500.0,0.00016149,2]
[399495783,1766416240882,-250.0,0.00016149,2]
[399495784,1766416240891,-500.0,0.00016149,2]
[399495785,1766416240901,-500.0,0.00016149,2]
[399495786,1766416240911,-250.0,0.00016149,2]
[399495787,1766416240921,-500.0,0.00016149,2]
[399495788,1766416240930,-500.0,0.00016149,2]
[399495789,1766416240939,-500.0,0.00016149,2]
[399495790,1766416240949,-500.0,0.00016149,2]
[399495791,1766416240958,-500.0,0.00016149,2]
[399495792,1766416240967,-500.0,0.00016149,2]
[399495793,1766416240976,-500.0,0.00016149,2]
[399495794,1766416240985,-533.88981491,0.00016149,2]
[399495795,1766416240994,-500.0,0.00016149,2]
[399495796,1766416241003,-500.0,0.00016149,2]
[399495797,1766416241013,-500.0,0.00016149,2]
[399495798,1766416241022,-500.0,0.00016149,2]
[399495799,1766416241032,-250.0,0.00016149,2]
[399495800,1766416241041,-500.0,0.00016149,2]
[399495801,1766416241050,-250.0,0.00016149,2]